Cogmind - Beta 13 X1 @@@ ROGUE MODE // 2023.08.02 @ 23:22:47 Player: Exp. Geonium Core Result: Self-destructed Performance ------------- Evolutions (2) 1000 Regions Visited (3) 600 Robots Destroyed (11) 55 Value Destroyed (290) 290 Prototype IDs (0) 0 Alien Tech Used (0) 0 Bonus (0) 0 TOTAL SCORE: 1945 Bonus ------- None Cogmind --------- Core Integrity 550/550 Matter 226/300 Energy 250/250 System Corruption 0% Temperature Cool (0) Movement Treading (160) Location -8/Materials Parts ------- > --- POWER (1) -------- Ion Engine > --- PROPULSION (3) --- Light Treads Light Treads > --- UTILITY (5) ------ Small Storage Unit Makeshift Armor Plating > --- WEAPON (2) ------- Light Assault Rifle Barrage Gun > --- INVENTORY (8) ---- Ion Engine Compact Wheel Flamer Makeshift Hammer Peak State ------------ > --- POWER ------------ Ion Engine > --- PROPULSION ------- Light Treads Light Treads > --- UTILITY ---------- Small Storage Unit Makeshift Armor Plating > --- WEAPON ----------- Barrage Gun Makeshift Hammer > --- INVENTORY -------- Ion Engine Compact Wheel Light Assault Rifle Flamer [Rating: 15] Favorites ----------- Power Ion Engine Engine Ion Engine Propulsion Light Treads Treads Light Treads Leg Aluminum Leg Wheel Wheel Utility Small Storage Unit Device Subdweller Optics Storage Small Storage Unit Protection Makeshift Armor Plating Weapon Light Assault Rifle Ballistic Gun Light Assault Rifle Impact Weapon Makeshift Hammer Build | -11 -10 -10 -8 ------- Run | Jun Mat Sub Mat Slots Evolved 4 | . . . 4 Power . | . . . . Propulsion 1 | . . . 1 Utility 3 | . . . 3 Weapon . | . . . . Parts Attached 14 | . . 14 . Power 3 | . . 3 . Engine 3 | . . 3 . Core . | . . . . Reactor . | . . . . Propulsion 5 | . . 5 . Treads 2 | . . 2 . Leg . | . . . . Wheel 3 | . . 3 . Hover . | . . . . Flight . | . . . . Utility 2 | . . 2 . Device 1 | . . 1 . Storage . | . . . . Processor . | . . . . Hackware . | . . . . Protection 1 | . . 1 . Artifact . | . . . . Weapon 4 | . . 4 . Energy Gun . | . . . . Energy Cannon . | . . . . Ballistic Gun 3 | . . 3 . Ballistic Cannon . | . . . . Launcher . | . . . . Special Weapon . | . . . . Impact Weapon 1 | . . 1 . Slashing Weapon . | . . . . Piercing Weapon . | . . . . Special Melee Weapon . | . . . . Unidentified Prototypes . | . . . . Parts Lost 3 | . . 3 . Power . | . . . . Propulsion 2 | . . 2 . Utility . | . . . . Weapon 1 | . . 1 . Highest Loss Streak 1 | . . 1 . To Critical Strikes . | . . . . Average Slot Usage (%) 96 | . 85 97 . Engine 14 | . 14 14 . Treads 8 | . . 9 . Leg 6 | . 28 4 . Wheel 13 | . . 14 . Device 8 | . . 9 . Storage 14 | . 14 14 . Protection 2 | . . 2 . Ballistic Gun 26 | . 28 26 . Impact Weapon 1 | . . 1 . Naked Turns . | . . . . Heaviest Build 20 | 12 12 20 18 Greatest Support 40 | 20 20 40 40 Greatest Overweight (x) 1 | . . 1 . Average Overweight (x) . | . . . . Largest Inventory Capacity 8 | . 8 8 8 Average Capacity 8 | . 8 8 8 Most Carried 8 | . 6 8 4 Average Carried 6 | . 6 6 4 Final Capacity 8 | 8 8 8 8 Final Carried 6 | 6 6 4 4 Class Distribution -------------------- 100% | Mutant Dominant Class ---------------- Mutant | -10/Materials Mutant | -10/Subcaves Mutant | -8/Materials Resources | -11 -10 -10 -8 ----------- Run | Jun Mat Sub Mat Matter Collected 401 | 200 . 201 . Remotely . | . . . . Salvage Created 246 | . . 246 . Parts 23 | . . 23 . Haulers Intercepted . | . . . . Recyclers Shooed . | . . . . Parts Field Recycled . | . . . . Retrieved Matter . | . . . . Parts Self-Destructed 11 | . . 11 . Prevented . | . . . . Kills | -11 -10 -10 -8 ------- Run | Jun Mat Sub Mat Combat Hostiles Destroyed 11 | . . 11 . Guns 11 | . . 11 . Classes Destroyed 2 | . . 2 . Swarmer 5 | . . 5 . Subdweller 6 | . . 6 . Best Kill Streak 2 | . . 2 . Combat Bots Only 2 | . . 2 . Max Kills in Single Turn 1 | . . 1 . Gunslinging . | . . . . Exploded . | . . . . Melee . | . . . . Uniques/NPCs Destroyed . | . . . . Combat | -11 -10 -10 -8 -------- Run | Jun Mat Sub Mat Damage Taken 773 | . . 773 . Core 214 | . . 214 . Absorbed by Shields . | . . . . Core Remaining (%) 57 | 100 . 14 . Volleys Fired 41 | . . 41 . Largest 2 | . . 2 . Hottest 48 | . . 48 . Shots Fired 81 | . . 81 . Gun 81 | . . 81 . Cannon . | . . . . Launcher . | . . . . Special . | . . . . Kinetic 81 | . . 81 . Thermal . | . . . . Explosive . | . . . . Electromagnetic . | . . . . Robot Hit Streak 13 | . . 13 . Robot Miss Streak 5 | . . 5 . Penetration Max . | . . . . Secondary Targets 1 | . . 1 . Max Gunslinging Chain 1 | . . 1 . Shots Hit Robots 58 | . . 58 . Core Hits 24 | . . 24 . Critical Kills 1 | . . 1 . Critical Parts Destroyed 2 | . . 2 . Critical Strikes 3 | . . 3 . Destroy 3 | . . 3 . Melee Attacks 2 | . . 2 . Impact 2 | . . 2 . Slashing . | . . . . Piercing . | . . . . Sneak Attacks . | . . . . Combat Hostiles . | . . . . Follow-up Attacks . | . . . . Damage Inflicted 682 | . . 682 . Guns 682 | . . 682 . Cannons . | . . . . Explosions . | . . . . Melee . | . . . . Ramming . | . . . . Kinetic 682 | . . 682 . Thermal . | . . . . Explosive . | . . . . Electromagnetic . | . . . . Impact . | . . . . Slashing . | . . . . Piercing . | . . . . Highest Corruption . | . . . . Average Corruption . | . . . . Corruption Purged . | . . . . Corruption Blocked . | . . . . Overload Shots . | . . . . Overflow Damage . | . . . . Projectiles . | . . . . Explosions . | . . . . Melee . | . . . . Knockbacks . | . . . . Impact . | . . . . Kinetic . | . . . . Secondary . | . . . . Self-Inflicted Damage . | . . . . Shots . | . . . . Rammed . | . . . . Targets Rammed . | . . . . Kicked . | . . . . Crushed . | . . . . Highest Temperature . | . . . . Average Temperature . | . . . . Received Heat Transfer 129 | . . 129 . Siege Activations . | . . . . Robots Corrupted . | . . . . Combat Hostiles . | . . . . Parts Fried . | . . . . Impact Corruptions . | . . . . Robots Melted . | . . . . Combat Hostiles . | . . . . Parts Melted 1 | . . 1 . Heat Transferred . | . . . . Parts Sabotaged . | . . . . Parts Stolen . | . . . . Parts Stripped . | . . . . Power Chain Reactions . | . . . . Missiles Intercepted . | . . . . Alert | -11 -10 -10 -8 ------- Run | Jun Mat Sub Mat Peak Influence 10 | . . . 10 Initial 10 | . . . 10 Average . | . . . 10 Maximum Alert Level . | . . . . Low Security (%) 100 | . 100 . 100 Level 1 . | . . . . Level 2 . | . . . . Level 3 . | . . . . Level 4 . | . . . . Level 5 . | . . . . High Security . | . . . . Max Security . | . . . . Squads Dispatched . | . . . . Investigation . | . . . . Extermination . | . . . . Reinforcement . | . . . . Assault . | . . . . Garrison . | . . . . Intercept . | . . . . Searches Triggered . | . . . . Construction Impeded . | . . . . Haulers Reinforced . | . . . . Active Scanning Responses . | . . . . Cargo Convoy Interrupts . | . . . . Stealth | -11 -10 -10 -8 --------- Run | Jun Mat Sub Mat Distress Signals . | . . . . Communications Jammed . | . . . . Distress Signals . | . . . . Times Spotted 18 | . . 18 . Peak Tracking Total 4 | . . 4 . Tactical Retreats 4 | . . 4 . Traps | -11 -10 -10 -8 ------- Run | Jun Mat Sub Mat Traps Triggered . | . . . . Indirectly . | . . . . Trap Hack Attempts . | . . . . Triggered . | . . . . Disarmed . | . . . . Reprogrammed . | . . . . Reused 1 | . . 1 . Traps Extracted . | . . . . Installed 1 | . . 1 . Triggered . | . . . . Most Traps Carried 1 | . . 1 . Machines | -11 -10 -10 -8 ---------- Run | Jun Mat Sub Mat Machines Disabled . | . . . . Max in Single Turn . | . . . . Machines Repaired . | . . . . Machines Sabotaged . | . . . . Overloaded Fab Kills . | . . . . Hacking | -11 -10 -10 -8 --------- Run | Jun Mat Sub Mat Machines Accessed 1 | . . 1 . Terminals . | . . . . Fabricators . | . . . . Repair Stations . | . . . . Recycling Units . | . . . . Scanalyzers . | . . . . Garrison Access . | . . . . Total Hacks 1 | . . 1 . Successful 1 | . . 1 . Failed . | . . . . Catastrophic . | . . . . Database Lockouts . | . . . . Manual 5 | . . 5 . Terminals . | . . . . Fabricators . | . . . . Repair Stations . | . . . . Recycling Units . | . . . . Scanalyzers . | . . . . Garrison Access . | . . . . Terminal Hacks 1 | . . 1 . Record 1 | . . 1 . Fabricator Hacks . | . . . . Repair Station Hacks . | . . . . Recycling Unit Hacks . | . . . . Scanalyzer . | . . . . Garrison Access Hacks . | . . . . Unauthorized Hacks . | . . . . Terminals . | . . . . Fabricators . | . . . . Repair Stations . | . . . . Recycling Units . | . . . . Scanalyzers . | . . . . Garrison Access . | . . . . Data Cores Recovered . | . . . . Used . | . . . . Hacking Detections . | . . . . Full Trace Events . | . . . . Feedback Events . | . . . . Feedback Blocked . | . . . . Robot Schematics Acquired . | . . . . Robots Built . | . . . . Authchips . | . . . . Time . | . . . . Total Robot Build Rating . | . . . . Part Schematics Acquired . | . . . . Parts Built . | . . . . Authchips . | . . . . Time . | . . . . Total Part Build Rating . | . . . . Parts Repaired . | . . . . Time . | . . . . Parts Recycled . | . . . . Recycled Matter . | . . . . Retrieved Matter . | . . . . Retrieved Components . | . . . . Parts Scanalyzed . | . . . . Part Schematics Acquired . | . . . . Parts Damaged . | . . . . Bothacking | -11 -10 -10 -8 ------------ Run | Jun Mat Sub Mat Used RIF Installer . | . . . . Robots Hacked . | . . . . Non-combat . | . . . . Combat . | . . . . Robot Hacks Applied . | . . . . Relay Couplers Released . | . . . . Fabnet Peak Effective % . | . . . . Robots Rewired . | . . . . Allies Hacked . | . . . . Hacks Repelled . | . . . . Allies | -11 -10 -10 -8 -------- Run | Jun Mat Sub Mat Total Allies . | . . . . Largest Group . | . . . . Highest-Rated Group . | . . . . Highest-Rated Ally . | . . . . Total Orders . | . . . . Ally Attacks . | . . . . Total Damage . | . . . . Kills . | . . . . Allies Corrupted . | . . . . Allies Melted . | . . . . Intel | -11 -10 -10 -8 ------- Run | Jun Mat Sub Mat Robot Analysis Total . | . . . . Derelict Logs Recovered 2 | . . 2 . Drone Launches . | . . . . Drone Recoveries . | . . . . Exploration | -11 -10 -10 -8 ------------- Run | Jun Mat Sub Mat Turns Passed 996 | . 81 911 4 Spaces Moved 699 | 1 8 688 2 Core . | . . . . Treads 162 | . . 160 2 Legs 37 | 1 8 28 . Wheels 500 | . . 500 . Hover . | . . . . Flight . | . . . . Fastest Speed 90 | 120 120 90 160 Average Speed 110 | 120 120 110 160 Slowest Speed 190 | 120 120 190 160 Overloaded Moves . | . . . . Propulsion Burnouts . | . . . . Robots Hopped . | . . . . Cave-ins Triggered . | . . . . Exploration Rate (%) 13 | 2 3 47 2 Regions Visited 3 Branch Regions 1 Pre-discovered Areas 1 | . . 1 . Known Exits Taken . | . . . . Unknown Exits Taken 3 | 1 1 1 . Scrap Searched 3 | . . 3 . Spaces Dug . | . . . . Terrain Destroyed . | . . . . Melee . | . . . . Projectile . | . . . . AOE . | . . . . Terrain Rammed . | . . . . Walls Destroyed . | . . . . Machines Disabled . | . . . . Actions | -11 -10 -10 -8 --------- Run | Jun Mat Sub Mat Total 850 | . 79 769 2 Wait 83 | . 72 11 . Move 696 | . 7 687 2 Hop . | . . . . Pick Up 5 | . . 5 . Fast Attach 3 | . . 3 . Attach 6 | . . 6 . Detach . | . . . . Swap 5 | . . 5 . Drop 8 | . . 8 . Fire 41 | . . 41 . Melee 2 | . . 2 . Ram . | . . . . Kick . | . . . . Crush . | . . . . Escape Stasis . | . . . . Rewire . | . . . . Trap 1 | . . 1 . Miscellaneous . | . . . . Route ------- -11/Junkyard -10/Materials -10/Subcaves -8/Materials (discovered 1 exit: Sto) History --------- Turn | Location | Event 1 | -11/Junkyard | Discovered new exit (range 0) 1 | -11/Junkyard | Entered Materials 61 | -10/Materials | Discovered new exit (range 5) 82 | -10/Materials | Entered Subcaves 141 | -10/Subcaves | Learned location of 1 exit from Materials 304 | -10/Subcaves | Build established: Mutant 468 | -10/Subcaves | Visited Clippyterm 508 | -10/Subcaves | Shifting Twisted Machinery released Barrage Gun 554 | -10/Subcaves | Core integrity fell below 50% 640 | -10/Subcaves | Shifting Twisted Machinery released Mak. Armor Plating 643 | -10/Subcaves | Shifting Twisted Machinery released Flamer 959 | -10/Subcaves | Core integrity fell below 20% 988 | -10/Subcaves | Discovered new exit (range 3) 993 | -10/Subcaves | Entered Materials 993 | -8/Materials | Evolved 4 slots: Propulsion x1, Utility x3 994 | -8/Materials | Identified exit to Storage 997 | -8/Materials | Self-destructed Last Messages --------------- 00713_ Destroyed Lgt. Ion Engine. 00715_ Flight Unit fries itself beyond repair. 00718_ S-10 Pest destroyed. 00719_ Lgt. Assault Rifle fries itself beyond repair. 00721_ Lgt. Ion Engine fries itself beyond repair. 00721_ Dropped Broken Sub. Power Source. 00721_ Dropped Sub. Power Source. 00724_ Acquired 14 matter. 00731_ Flight Unit fries itself beyond repair. 00744_ Acquired Flamer. 00822_ Sub. Optics shoots sparks and powers down. 00823_ Dropped Broken Sub. Optics. 00867_ AR-O4E(u) deconstructs Twisted Machinery. 00963_ FI-VVY(R) destroyed. 00966_ Acquired 37 matter. 00988_ EXIT=FOUND PARAMETERS=PROPULSION+1,UTILITY+3 LOCATION=UNKNOWN GOAL=ESCAPE Loading 1 Materials exit... Map ----- +----------------------------------------------------+ | ?????????????????????????????????? | | ?????????????????????????????????? | | ?????????????????????????????????? | | ?????????????????????????????????? | | ?????????????????????????????????? | | ?????????????????????????????????? | | ?????????????????????????????????? | | ?????????????????????????????????? | | ?????????????????????????????????? | | ?????????????????????????????????? | | ?????????????????????????????????? | | ?????? ??????????????????????????? | | ?????# ??????????????????????????? | | ?????# ??????????????????????????? | | ?????# ###???????????????????????? | | ?????# ???????????????????????? | | ?????# ???????????????????????? | | ?????# ???????????????????????? | | ?????# #???????????????????????? | | ?????# #???????????????????????? | | ?????# #???????????????????????? | | ?????# #?######????????????????? | | ?????# #? ???????????????? | | ?????# # """ *???????????????? | | ?????# # """ #??????????????? | | ?????# @ """ ""????????????????? | | ?????# # "" ???????????????? | | ?????# # """ T" #??????????????? | | ?????# #?""" "" #??????????????? | | ?????#####?""" "" ???????????????? | | ???????????? ????????????????? | | ????????????###????????>?????????? | | ?????????????????????????????????? | | ?????????????????????????????????? | | ?????????????????????????????????? | | ?????????????????????????????????? | | ?????????????????????????????????? | | ?????????????????????????????????? | | ?????????????????????????????????? | | ?????????????????????????????????? | | ?????????????????????????????????? | | ?????????????????????????????????? | | ?????????????????????????????????? | | ?????????????????????????????????? | | ?????????????????????????????????? | | | | | | | | | | | +----------------------------------------------------+ Best States ------------- Heat Dissipation 25 Energy Generation 15 Energy Capacity 250 Matter Stores 300 Matter Capacity 300 Sight Range 21 Terrain Scan Density 10 Armor Coverage 100 Evasion (%) 55 Recoil Reduction 2 Item Schematics ----------------- None Robot Schematics ------------------ None Fabricated ------------ Nothing Alien Tech Used ----------------- None Achievements -------------- None Challenges ------------ None Game ------ Seed FissionFieldVibroblade Manual? 0 Play Time 00:06:56 Cumulative 443.1 hours Start 2023.08.02 @ 23:15:35 End 2023.08.02 @ 23:22:47 Sessions 1 Manual Loads 0 Difficulty Rogue Special Mode None Game No. 491 Rogue 491 Adventurer 0 Explorer 0 Win Type - Total 12 Types 8/0/3/1/0/0/0/0/0 Lore% 80 Gallery% 88 Achievement% 80 Wizard Run 0 Options --------- ASCII 0 Keyboard 0 Movement Numpad Keybinds 0 Fullscreen 1 Font 18/Terminus Map View 76x50 Tactical HUD 1 Map Filters NONE Filters NONE Steam 1 RUN: a4e55881-6549-4b1d-99fd-3dc9d97ed316